[Event "Qatar Masters-B 2024"]
[Site "Doha"]
[Date "2024.12.12"]
[Round "9.1"]
[White "Achour, Mohamed Anis"]
[Black "Alhassadi, Yousef A."]
[Result "1/2-1/2"]
[ECO "D02"]
[WhiteElo "2051"]
[BlackElo "2126"]
[Annotator "NA"]
[PlyCount "48"]
[EventDate "2024.11.24"]
[EventType "swiss"]
[EventCountry "QAT"]
[SourceTitle "playchess.com"]
[Source "ChessBase"]
[SourceQuality "1"]
[TimeControl "40/5400+30:1800+30"]

1. d4 {[%emt 0:00:03]} d5 {[%emt 0:00:09]} 2. Bf4 {[%emt 0:00:18]} e6 {[%emt 0:00:37]} 3. e3 {[%emt 0:00:18]} Nf6 {[%emt 0:02:21]} 4. Nf3 {[%emt 0:02:49]} c5 {[%emt 0:01:39]} 5. c3 {[%emt 0:02:10]} Bd6 {[%emt 0:07:05]} 6. Bg3 {[%emt 0:04:44]} O-O {[%emt 0:00:59]} 7. Bd3 {[%emt 0:01:05]} Qc7 {[%emt 0:00:21]} 8. O-O {[%emt 0:00:34]} Nbd7 {[%emt 0:00:27]} 9. Nbd2 {[%emt 0:00:28]} Bxg3 {[%emt 0:01:50]} 10. hxg3 {[%emt 0:00:21]} e5 {[%emt 0:00:15]} 11. dxe5 {[%emt 0:00:09]} Nxe5 {[%emt 0:00:06]} 12. Nxe5 {[%emt 0:00:09]} Qxe5 {[%emt 0:00:07]} 13. Re1 {[%emt 0:00:58]} Bf5 {[%emt 0:13:45]} 14. Nf3 {[%emt 0:00:29]} Qe6 {[%emt 0:00:05]} 15. Ng5 {[%emt 0:00:17]} Qc8 {[%emt 0:01:48]} 16. e4 {[%emt 0:00:51]} dxe4 {[%emt 0:00:09]} 17. Nxe4 {[%emt 0:00:10]} Nxe4 {[%emt 0:00:38]} 18. Bxe4 {[%emt 0:00:03]} Bxe4 {[%emt 0:00:42]} 19. Rxe4 {[%emt 0:00:05]} Kh8 {[%emt 0:01:10]} 20. Kh2 {[%emt 0:00:26]} Kg8 {[%emt 0:00:08]} 21. Kg1 {[%emt 0:00:05]} Kh8 {[%emt 0:00:09]} 22. Kh2 {[%emt 0:00:04]} Kg8 {[%emt 0:00:06]} 23. Kg1 {[%emt 0:00:07]} Kh8 {[%emt 0:00:07]} 24. Kh2 {[%emt 0:00:15]} Kg8 {[%emt 0:00:08]} 1/2-1/2

[Event "Qatar Masters-B 2024"]
[Site "Doha"]
[Date "2024.12.12"]
[Round "9.2"]
[White "Albadri Sattar"]
[Black "Shermuhammadov, Samandar"]
[Result "1/2-1/2"]
[ECO "A57"]
[WhiteElo "2139"]
[BlackElo "2108"]
[Annotator "NA RC"]
[PlyCount "93"]
[EventDate "2024.11.24"]
[EventType "swiss"]
[EventCountry "QAT"]
[SourceTitle "playchess.com"]
[Source "ChessBase"]
[SourceQuality "1"]
[TimeControl "40/5400+30:1800+30"]

1. d4 {[%emt 0:00:29]} Nf6 {[%emt 0:00:04]} 2. c4 {[%emt 0:00:12]} c5 {[%emt 0:00:05]} 3. d5 {[%emt 0:00:10]} b5 {[%emt 0:00:06]} 4. cxb5 {[%emt 0:00:13]} a6 {[%emt 0:00:03]} 5. Nc3 {[%emt 0:01:44]} axb5 {[%emt 0:01:52]} 6. e4 {[%emt 0:00:02]} b4 {[%emt 0:01:39]} 7. Nb5 {[%emt 0:00:16]} d6 {[%emt 0:00:54]} 8. Bf4 {[%emt 0:00:12]} Nbd7 {[%emt 0:01:07]} 9. Nf3 {[%emt 0:00:16]} Ba6 {[%emt 0:04:59]} 10. e5 {[%emt 0:01:46]} Qb8 {[%emt 0:03:54]} 11. Nxd6+ {[%emt 0:12:28]} exd6 {[%emt 0:01:16]} 12. exf6 {[%emt 0:06:41]} Bxf1 {[%emt 0:00:12]} 13. fxg7 {[%emt 0:13:00]} Bxg7 {[%emt 0:00:07]} 14. Kxf1 {[%emt 0:00:08]} O-O {[%emt 0:02:33]} 15. Ng5 {[%emt 0:05:33]} Nf6 {[%emt 0:01:00]} 16. h4 {[%emt 0:02:16]} h6 {[%emt 0:01:28]} 17. Nf3 {[%emt 0:15:54]} Qb5+ {[%emt 0:01:27]} 18. Kg1 {[%emt 0:00:13]} Qc4 {[%emt 0:00:07]} 19. Bxd6 {[%emt 0:03:47]} Rfd8 {[%emt 0:00:05]} 20. Rc1 {[%emt 0:07:43]} Qxa2 {[%emt 0:00:10]} 21. Bxc5 {[%emt 0:00:33]} Rxd5 {[%emt 0:00:05]} 22. Qe1 {[%emt 0:04:01]} Qxb2 {[%emt 0:02:59]} 23. Bxb4 {[%emt 0:06:42]} Re8 {[%emt 0:00:27]} 24. Qc3 {[%emt 0:00:52]} Qe2 {[%emt 0:00:25]} 25. Qb3 {[%emt 0:05:52]} Ng4 {[%emt 0:01:59]} 26. Rf1 {[%emt 0:00:38]} Qb5 {[%emt 0:01:31]} 27. Qa2 {[%emt 0:04:03]} Rd3 {[%emt 0:05:50]} 28. Qa5 {[%emt 0:01:46]} Qc4 {[%emt 0:01:31]} 29. Qc5 {[%emt 0:02:05]} Qf4 {[%emt 0:00:41]} 30. Be1 {[%emt 0:02:14]} Rxf3 {[%emt 0:01:51]} 31. Qc6 {[%emt 0:02:08]} Rxe1 {[%emt 0:01:21]} 32. gxf3 {[%emt 0:01:36]} Rxf1+ {[%emt 0:08:06]} 33. Kxf1 {[%emt 0:00:03]} Ne5 {[%emt 0:00:10]} 34. Qa8+ {[%emt 0:00:27]} Kh7 {[%emt 0:00:07]} 35. Qe4+ {[%emt 0:00:13]} Qxe4 {[%emt 0:00:47]} 36. fxe4 {[%emt 0:00:02]} h5 {[%emt 0:00:19]} 37. Kg2 {[%emt 0:01:27]} Ng6 {[%emt 0:00:15]} 38. Kg3 {[%emt 0:00:37]} Be5+ {[%emt 0:00:17]} 39. Kg2 {[%emt 0:00:18]} Kg7 {[%emt 0:00:22]} 40. f3 {[%emt 0:00:58]} Kf6 {[%emt 0:02:17]} 41. Kh3 {[%emt 0:30:23]} Bd4 {[%emt 0:31:57]} 42. Rb1 {[%emt 0:00:48]} Bf2 {[%emt 0:04:45]} 43. Rb5 {[%emt 0:00:17]} Kg7 {[%emt 0:00:11]} 44. Kh2 {[%emt 0:00:34]} Nxh4 {[%emt 0:05:09]} 45. Rxh5 {[%emt 0:00:23]} Ng6 {[%emt 0:00:08]} 46. Rf5 {[%emt 0:00:29]} Be1 {[%emt 0:00:55]} 47. Kh3 {[%emt 0:00:10]} 1/2-1/2

[Event "Qatar Masters-B 2024"]
[Site "Doha"]
[Date "2024.12.12"]
[Round "9.3"]
[White "Hong, Mingren"]
[Black "Akhmediyar, Yernur"]
[Result "1-0"]
[ECO "B31"]
[WhiteElo "1951"]
[BlackElo "1898"]
[Annotator "NA COMBH"]
[PlyCount "115"]
[EventDate "2024.11.24"]
[EventType "swiss"]
[EventCountry "QAT"]
[SourceTitle "playchess.com"]
[Source "ChessBase"]
[SourceQuality "1"]
[TimeControl "40/5400+30:1800+30"]

1. e4 {[%emt 0:00:03]} c5 {[%emt 0:00:20]} 2. Nf3 {[%emt 0:00:03]} Nc6 {[%emt 0:00:14]} 3. Bb5 {[%emt 0:00:03]} g6 {[%emt 0:00:35]} 4. O-O {[%emt 0:00:06]} Bg7 {[%emt 0:00:56]} 5. Re1 {[%emt 0:00:04]} e5 {[%emt 0:04:19]} 6. Bxc6 {[%emt 0:01:39]} dxc6 {[%emt 0:07:46]} 7. d3 {[%emt 0:00:04]} Qc7 {[%emt 0:07:39]} 8. Be3 {[%emt 0:00:38]} b6 {[%emt 0:00:23]} 9. Nbd2 {[%emt 0:00:35]} Nf6 {[%emt 0:01:56]} 10. Nc4 {[%emt 0:01:49]} Nd7 {[%emt 0:05:38]} 11. Qd2 {[%emt 0:00:08]} Ba6 {[%emt 0:04:03]} 12. Qc3 {[%emt 0:02:14]} O-O {[%emt 0:04:31]} 13. a3 {[%emt 0:00:11]} f5 {[%emt 0:12:08]} 14. Ng5 {[%emt 0:03:22]} Rae8 {[%emt 0:04:49]} 15. Qb3 {[%emt 0:00:23]} Kh8 {[%emt 0:01:21]} 16. exf5 {[%emt 0:05:36]} gxf5 {[%emt 0:02:13]} 17. f4 {[%emt 0:02:39]} h6 {[%emt 0:07:17]} 18. Nf3 {[%emt 0:00:21]} e4 {[%emt 0:04:39]} 19. dxe4 {[%emt 0:00:35]} Bxc4 {[%emt 0:11:57]} 20. Qxc4 {[%emt 0:00:01]} Rxe4 {[%emt 0:00:07]} 21. Qd3 {[%emt 0:00:03]} c4 {[%emt 0:00:55]} 22. Qd2 {[%emt 0:00:04]} Nc5 {[%emt 0:03:00]} 23. Bxc5 {[%emt 0:02:22]} bxc5 {[%emt 0:00:23]} 24. Ne5 {[%emt 0:00:05]} Bxe5 {[%emt 0:08:12]} 25. fxe5 {[%emt 0:00:01]} Qxe5 {[%emt 0:03:19]} 26. Qxh6+ {[%emt 0:00:04]} Kg8 {[%emt 0:00:05]} 27. Qg6+ {[%emt 0:00:21]} Kh8 {[%emt 0:00:14]} 28. Qh5+ {[%emt 0:01:58]} Kg7 {[%emt 0:00:58]} 29. Qg5+ {[%emt 0:00:20]} Kh7 {[%emt 0:02:25]} 30. Rxe4 {[%emt 0:01:31]} Qxe4 {[%emt 0:00:14]} 31. Rd1 {[%emt 0:00:35]} Rf7 {[%emt 0:00:54]} 32. h3 {[%emt 0:00:35]} Qe7 {[%emt 0:02:29]} 33. Qf4 {[%emt 0:01:53]} Qe4 {[%emt 0:00:29]} 34. Qxe4 {[%emt 0:02:43]} fxe4 {[%emt 0:00:02]} 35. Re1 {[%emt 0:00:04]} Re7 {[%emt 0:00:39]} 36. Kf2 {[%emt 0:00:24]} Kg6 {[%emt 0:00:13]} 37. Re3 {[%emt 0:00:38]} Kf5 {[%emt 0:00:55]} 38. Rc3 {[%emt 0:00:04]} Ke5 {[%emt 0:00:33]} 39. Rxc4 {[%emt 0:00:08]} Kd5 {[%emt 0:00:20]} 40. Ra4 {[%emt 0:00:11]} Rf7+ {[%emt 0:00:42]} 41. Ke3 {[%emt 0:30:15]} Rg7 {[%emt 0:30:33]} 42. g4 {[%emt 0:01:31]} Rh7 {[%emt 0:00:32]} 43. Rxe4 {[%emt 0:00:06]} Rxh3+ {[%emt 0:00:03]} 44. Kf4 {[%emt 0:00:04]} Rh2 {[%emt 0:00:26]} 45. c4+ {[%emt 0:00:04]} Kd6 {[%emt 0:00:15]} 46. b3 {[%emt 0:00:14]} Rf2+ {[%emt 0:01:13]} 47. Kg3 {[%emt 0:00:07]} Ra2 {[%emt 0:00:35]} 48. a4 {[%emt 0:00:04]} Kc7 {[%emt 0:00:17]} 49. g5 {[%emt 0:00:19]} Ra3 {[%emt 0:00:40]} 50. Re3 {[%emt 0:00:04]} Ra1 {[%emt 0:00:17]} 51. Kg4 {[%emt 0:00:04]} Kb6 {[%emt 0:00:21]} 52. g6 {[%emt 0:00:08]} Rd1 {[%emt 0:00:33]} 53. g7 {[%emt 0:00:17]} Rd8 {[%emt 0:00:14]} 54. Kf5 {[%emt 0:00:03]} Ka5 {[%emt 0:00:54]} 55. Kf6 {[%emt 0:00:06]} a6 {[%emt 0:00:29]} 56. Kf7 {[%emt 0:00:18]} Rd7+ {[%emt 0:00:14]} 57. Re7 {[%emt 0:00:10]} Rb7 {[%emt 0:00:13]} 58. b4+ {[%emt 0:00:10]} 1-0

[Event "Qatar Masters-B 2024"]
[Site "Doha"]
[Date "2024.12.12"]
[Round "9.4"]
[White "Aryan Mehta"]
[Black "Mahmood Lodhi"]
[Result "0-1"]
[ECO "E70"]
[WhiteElo "1762"]
[BlackElo "2150"]
[Annotator "RC"]
[PlyCount "136"]
[EventDate "2024.11.24"]
[EventType "swiss"]
[EventCountry "QAT"]
[SourceTitle "playchess.com"]
[Source "ChessBase"]
[SourceQuality "1"]
[TimeControl "40/5400+30:1800+30"]

1. d4 {[%emt 0:00:06]} Nf6 {[%emt 0:00:11]} 2. c4 {[%emt 0:00:05]} c5 {[%emt 0:00:13]} 3. d5 {[%emt 0:00:07]} g6 {[%emt 0:00:07]} 4. Nc3 {[%emt 0:00:07]} d6 {[%emt 0:00:06]} 5. e4 {[%emt 0:00:14]} Bg7 {[%emt 0:00:04]} 6. Bd3 {[%emt 0:00:19]} O-O {[%emt 0:00:11]} 7. Nge2 {[%emt 0:00:09]} e6 {[%emt 0:02:52]} 8. O-O {[%emt 0:00:30]} exd5 {[%emt 0:00:08]} 9. exd5 {[%emt 0:00:13]} Ng4 {[%emt 0:11:18]} 10. f4 {[%emt 0:05:09]} Re8 {[%emt 0:00:49]} 11. Rf3 {[%emt 0:04:09]} Nh6 {[%emt 0:09:29]} 12. h3 {[%emt 0:11:30]} Nf5 {[%emt 0:01:35]} 13. Bxf5 {[%emt 0:00:26]} Bxf5 {[%emt 0:00:09]} 14. Ng3 {[%emt 0:03:24]} Bc8 {[%emt 0:06:49]} 15. Be3 {[%emt 0:12:09]} Nd7 {[%emt 0:01:34]} 16. Qd3 {[%emt 0:04:48]} f5 {[%emt 0:00:28]} 17. Re1 {[%emt 0:01:32]} Nf6 {[%emt 0:03:00]} 18. Bf2 {[%emt 0:08:47]} Rxe1+ {[%emt 0:00:47]} 19. Bxe1 {[%emt 0:00:07]} Bd7 {[%emt 0:00:14]} 20. Re3 {[%emt 0:01:30]} a6 {[%emt 0:00:32]} 21. a4 {[%emt 0:02:51]} Qf8 {[%emt 0:01:17]} 22. Qe2 {[%emt 0:04:47]} Bh6 {[%emt 0:10:46]} 23. Qf3 {[%emt 0:03:37]} Re8 {[%emt 0:00:22]} 24. Bd2 {[%emt 0:00:29]} Rxe3 {[%emt 0:00:32]} 25. Qxe3 {[%emt 0:00:44]} b6 {[%emt 0:01:43]} 26. Nce2 {[%emt 0:01:08]} Qe8 {[%emt 0:01:57]} 27. Qxe8+ {[%emt 0:00:58]} Nxe8 {[%emt 0:00:14]} 28. b3 {[%emt 0:04:11]} Bg7 {[%emt 0:03:02]} 29. Bc3 {[%emt 0:01:25]} b5 {[%emt 0:03:22]} 30. Bxg7 {[%emt 0:01:02]} Kxg7 {[%emt 0:00:06]} 31. Nc3 {[%emt 0:08:36]} Nc7 {[%emt 0:10:07]} 32. Nge2 {[%emt 0:02:54]} Kf6 {[%emt 0:00:30]} 33. Kf2 {[%emt 0:00:16]} h6 {[%emt 0:00:52]} 34. g3 {[%emt 0:00:15]} Ke7 {[%emt 0:08:20]} 35. Ke3 {[%emt 0:00:32]} b4 {[%emt 0:01:28]} 36. Nd1 {[%emt 0:00:22]} a5 {[%emt 0:00:50]} 37. Ng1 {[%emt 0:01:07]} Na8 {[%emt 0:00:14]} 38. Nf3 {[%emt 0:00:32]} Nb6 {[%emt 0:00:21]} 39. Nb2 {[%emt 0:00:10]} Be8 {[%emt 0:00:52]} 40. Nd2 {[%emt 0:01:06]} Bf7 {[%emt 0:02:20]} 41. Kd3 {[%emt 0:30:40]} Kf6 {[%emt 0:31:39]} 42. Ke3 {[%emt 0:01:15]} g5 {[%emt 0:00:56]} 43. Kf3 {[%emt 0:00:20]} Bh5+ {[%emt 0:01:07]} 44. Kf2 {[%emt 0:00:42]} Nd7 {[%emt 0:00:31]} 45. Nf1 {[%emt 0:03:08]} Kg6 {[%emt 0:00:24]} 46. Nd2 {[%emt 0:01:42]} Nf6 {[%emt 0:01:50]} 47. Ke3 {[%emt 0:00:32]} Kf7 {[%emt 0:02:04]} 48. Kd3 {[%emt 0:04:41]} Kg7 {[%emt 0:06:34]} 49. Ke3 {[%emt 0:00:35]} Kf7 {[%emt 0:03:03]} 50. Kd3 {[%emt 0:00:11]} Bg6 {[%emt 0:01:07]} 51. Ke3 {[%emt 0:00:41]} Kg7 {[%emt 0:00:43]} 52. Kf3 {[%emt 0:00:32]} g4+ {[%emt 0:00:26]} 53. Kg2 {[%emt 0:01:01]} gxh3+ {[%emt 0:00:24]} 54. Kxh3 {[%emt 0:00:02]} Bh5 {[%emt 0:00:20]} 55. Kg2 {[%emt 0:00:51]} Ne4 {[%emt 0:00:14]} 56. Nxe4 {[%emt 0:01:46]} fxe4 {[%emt 0:00:02]} 57. Kh3 {[%emt 0:00:28]} Be2 {[%emt 0:01:17]} 58. Kg2 {[%emt 0:00:55]} e3 {[%emt 0:00:38]} 59. g4 {[%emt 0:00:50]} Kf6 {[%emt 0:00:29]} 60. Kg3 {[%emt 0:00:36]} Kg6 {[%emt 0:00:52]} 61. Kh3 {[%emt 0:01:35]} Bd1 {[%emt 0:01:54]} 62. Kg3 {[%emt 0:00:21]} Kf6 {[%emt 0:00:39]} 63. f5 {[%emt 0:01:21]} Kg5 {[%emt 0:01:08]} 64. Nd3 {[%emt 0:01:16]} Bxb3 {[%emt 0:00:26]} 65. Nxc5 {[%emt 0:01:47]} dxc5 {[%emt 0:00:13]} 66. d6 {[%emt 0:00:03]} Kf6 {[%emt 0:00:15]} 67. Kf3 {[%emt 0:00:05]} Bxa4 {[%emt 0:00:27]} 68. Kxe3 {[%emt 0:00:03]} Bc6 {[%emt 0:00:12]} 0-1

[Event "Qatar Masters-B 2024"]
[Site "Doha"]
[Date "2024.12.12"]
[Round "9.5"]
[White "Araoune, Saadi"]
[Black "Boulrens, Ala Eddine"]
[Result "1-0"]
[ECO "D17"]
[WhiteElo "2085"]
[BlackElo "2144"]
[Annotator "NA RC"]
[PlyCount "65"]
[EventDate "2024.11.24"]
[EventType "swiss"]
[EventCountry "QAT"]
[SourceTitle "playchess.com"]
[Source "ChessBase"]
[SourceQuality "1"]
[TimeControl "40/5400+30:1800+30"]

1. d4 {[%emt 0:00:09]} d5 {[%emt 0:00:26]} 2. c4 {[%emt 0:00:17]} c6 {[%emt 0:00:40]} 3. Nc3 {[%emt 0:00:24]} Nf6 {[%emt 0:00:17]} 4. Nf3 {[%emt 0:03:47]} dxc4 {[%emt 0:02:44]} 5. a4 {[%emt 0:00:57]} Bf5 {[%emt 0:02:39]} 6. Ne5 {[%emt 0:08:12]} Nbd7 {[%emt 0:06:55]} 7. Nxc4 {[%emt 0:00:41]} Nb6 {[%emt 0:03:08]} 8. Ne5 {[%emt 0:01:31]} a5 {[%emt 0:02:47]} 9. f3 {[%emt 0:08:07]} e6 {[%emt 0:06:04]} 10. e4 {[%emt 0:00:16]} Bg6 {[%emt 0:00:13]} 11. Be3 {[%emt 0:03:58]} Bb4 {[%emt 0:04:07]} 12. Be2 {[%emt 0:00:10]} O-O {[%emt 0:07:26]} 13. O-O {[%emt 0:04:57]} Nfd7 {[%emt 0:09:00]} 14. Nxg6 {[%emt 0:08:48]} hxg6 {[%emt 0:00:23]} 15. Rc1 {[%emt 0:00:09]} Qe7 {[%emt 0:01:00]} 16. Qb3 {[%emt 0:00:45]} Rfd8 {[%emt 0:03:33]} 17. Rfd1 {[%emt 0:04:52]} c5 {[%emt 0:08:33]} 18. d5 {[%emt 0:10:51]} c4 {[%emt 0:00:59]} 19. Bxc4 {[%emt 0:15:01]} Nc5 {[%emt 0:01:57]} 20. Qa2 {[%emt 0:00:07]} Bxc3 {[%emt 0:01:43]} 21. Rxc3 {[%emt 0:02:01]} Ncxa4 {[%emt 0:03:25]} 22. Rc2 {[%emt 0:01:46]} exd5 {[%emt 0:02:35]} 23. Bxd5 {[%emt 0:01:13]} Nxd5 {[%emt 0:00:27]} 24. Rxd5 {[%emt 0:00:19]} Rxd5 {[%emt 0:02:24]} 25. Qxd5 {[%emt 0:01:03]} Qb4 {[%emt 0:01:45]} 26. Kf2 {[%emt 0:11:04]} Nxb2 {[%emt 0:01:33]} 27. Rc7 {[%emt 0:02:01]} Qf8 {[%emt 0:00:47]} 28. Qb3 {[%emt 0:00:19]} Rc8 {[%emt 0:00:46]} 29. Rxc8 {[%emt 0:00:14]} Qxc8 {[%emt 0:00:04]} 30. Qxb2 {[%emt 0:00:03]} a4 {[%emt 0:00:08]} 31. Bd4 {[%emt 0:01:33]} f6 {[%emt 0:00:32]} 32. Qa2+ {[%emt 0:01:08]} Kh7 {[%emt 0:00:10]} 33. Qxa4 {[%emt 0:00:08]} 1-0

[Event "Qatar Masters-B 2024"]
[Site "Doha"]
[Date "2024.12.12"]
[Round "9.6"]
[White "Syed Abdul Khader"]
[Black "Gyana Sai Santhosh M"]
[Result "1-0"]
[ECO "D35"]
[WhiteElo "1943"]
[BlackElo "2090"]
[Annotator "NA RC"]
[PlyCount "83"]
[EventDate "2024.11.24"]
[EventType "swiss"]
[EventCountry "QAT"]
[SourceTitle "playchess.com"]
[Source "ChessBase"]
[SourceQuality "1"]
[TimeControl "40/5400+30:1800+30"]

1. d4 {[%emt 0:00:16]} Nf6 {[%emt 0:00:41]} 2. c4 {[%emt 0:00:06]} e6 {[%emt 0:00:05]} 3. Nc3 {[%emt 0:00:19]} d5 {[%emt 0:02:15]} 4. cxd5 {[%emt 0:00:31]} exd5 {[%emt 0:00:02]} 5. Bg5 {[%emt 0:01:19]} Bb4 {[%emt 0:10:03]} 6. e3 {[%emt 0:00:36]} h6 {[%emt 0:01:09]} 7. Bh4 {[%emt 0:00:36]} g5 {[%emt 0:02:52]} 8. Bg3 {[%emt 0:03:17]} Ne4 {[%emt 0:01:14]} 9. Nge2 {[%emt 0:02:30]} h5 {[%emt 0:09:57]} 10. h4 {[%emt 0:02:44]} Nxg3 {[%emt 0:03:41]} 11. Nxg3 {[%emt 0:02:16]} gxh4 {[%emt 0:03:06]} 12. Nxh5 {[%emt 0:01:31]} c6 {[%emt 0:04:35]} 13. g3 {[%emt 0:02:29]} hxg3 {[%emt 0:03:15]} 14. Qf3 {[%emt 0:00:22]} gxf2+ {[%emt 0:04:12]} 15. Kxf2 {[%emt 0:00:05]} Be6 {[%emt 0:02:37]} 16. Bd3 {[%emt 0:07:26]} Be7 {[%emt 0:03:19]} 17. Bf5 {[%emt 0:24:53]} Kd7 {[%emt 0:12:50]} 18. Rac1 {[%emt 0:01:43]} Na6 {[%emt 0:06:14]} 19. Nxd5 {[%emt 0:13:57]} Bh4+ {[%emt 0:14:44]} 20. Ke2 {[%emt 0:00:19]} cxd5 {[%emt 0:00:55]} 21. Qxd5+ {[%emt 0:01:53]} Ke7 {[%emt 0:06:21]} 22. Qf3 {[%emt 0:20:38]} Qb6 {[%emt 0:03:07]} 23. Rxh4 {[%emt 0:01:22]} Rac8 {[%emt 0:02:12]} 24. Bxe6 {[%emt 0:01:45]} Qxb2+ {[%emt 0:01:13]} 25. Kd3 {[%emt 0:00:04]} fxe6 {[%emt 0:01:02]} 26. Qf6+ {[%emt 0:00:28]} Kd6 {[%emt 0:00:32]} 27. Qe5+ {[%emt 0:00:34]} Ke7 {[%emt 0:00:03]} 28. Nf4 {[%emt 0:01:12]} Rc3+ {[%emt 0:01:40]} 29. Rxc3 {[%emt 0:00:24]} Nb4+ {[%emt 0:00:04]} 30. Ke4 {[%emt 0:00:38]} Qb1+ {[%emt 0:00:08]} 31. Rd3 {[%emt 0:00:09]} Rxh4 {[%emt 0:00:25]} 32. Qxe6+ {[%emt 0:00:03]} Kd8 {[%emt 0:00:44]} 33. Qf6+ {[%emt 0:00:04]} Kd7 {[%emt 0:00:15]} 34. Qxh4 {[%emt 0:00:06]} Qxa2 {[%emt 0:01:06]} 35. Qh7+ {[%emt 0:00:22]} Kd6 {[%emt 0:00:03]} 36. Rc3 {[%emt 0:00:29]} Qb1+ {[%emt 0:01:02]} 37. Nd3 {[%emt 0:00:01]} Nxd3 {[%emt 0:00:35]} 38. Qc7+ {[%emt 0:00:54]} Ke6 {[%emt 0:00:08]} 39. Qc8+ {[%emt 0:00:03]} Kd6 {[%emt 0:00:23]} 40. Qd8+ {[%emt 0:00:05]} Ke6 {[%emt 0:00:03]} 41. Qd5+ {[%emt 0:30:05]} Ke7 {[%emt 0:30:10]} 42. Rc7+ {[%emt 0:00:03]} 1-0

[Event "Qatar Masters-B 2024"]
[Site "Doha"]
[Date "2024.12.12"]
[Round "9.7"]
[White "Zozek Salah Mohammed"]
[Black "Sharma, Taksh"]
[Result "1-0"]
[ECO "D73"]
[WhiteElo "2206"]
[BlackElo "1863"]
[Annotator "RC"]
[PlyCount "51"]
[EventDate "2024.11.24"]
[EventType "swiss"]
[EventCountry "QAT"]
[SourceTitle "playchess.com"]
[Source "ChessBase"]
[SourceQuality "1"]
[TimeControl "40/5400+30:1800+30"]

1. d4 {[%emt 0:00:03]} d5 {[%emt 0:00:10]} 2. Nf3 {[%emt 0:00:01]} Nf6 {[%emt 0:00:08]} 3. g3 {[%emt 0:00:01]} g6 {[%emt 0:01:13]} 4. Bg2 {[%emt 0:00:01]} Bg7 {[%emt 0:00:08]} 5. O-O {[%emt 0:00:05]} O-O {[%emt 0:00:29]} 6. c4 {[%emt 0:00:02]} c6 {[%emt 0:01:26]} 7. cxd5 {[%emt 0:00:05]} cxd5 {[%emt 0:00:08]} 8. Ne5 {[%emt 0:00:02]} Nc6 {[%emt 0:02:51]} 9. Nxc6 {[%emt 0:00:16]} bxc6 {[%emt 0:00:11]} 10. Nc3 {[%emt 0:00:02]} Nd7 {[%emt 0:16:02]} 11. Na4 {[%emt 0:04:02]} Ba6 {[%emt 0:08:12]} 12. Re1 {[%emt 0:04:09]} e6 {[%emt 0:02:09]} 13. Be3 {[%emt 0:04:42]} Rc8 {[%emt 0:01:33]} 14. Rc1 {[%emt 0:00:40]} Qa5 {[%emt 0:07:51]} 15. a3 {[%emt 0:12:49]} Bc4 {[%emt 0:15:12]} 16. b4 {[%emt 0:04:22]} Qa6 {[%emt 0:05:59]} 17. Rc3 {[%emt 0:06:47]} Rcd8 {[%emt 0:14:13]} 18. Nb2 {[%emt 0:04:28]} Nb6 {[%emt 0:00:03]} 19. a4 {[%emt 0:01:55]} e5 {[%emt 0:00:46]} 20. Ra3 {[%emt 0:16:50]} Rfe8 {[%emt 0:02:50]} 21. Bf1 {[%emt 0:05:59]} Nc8 {[%emt 0:05:43]} 22. dxe5 {[%emt 0:06:52]} Bxe5 {[%emt 0:00:37]} 23. Nxc4 {[%emt 0:00:36]} Qxc4 {[%emt 0:00:37]} 24. Bc5 {[%emt 0:00:13]} Qg4 {[%emt 0:04:22]} 25. e3 {[%emt 0:00:33]} Qe4 {[%emt 0:01:03]} 26. Bd3 {[%emt 0:01:40]} 1-0

[Event "Qatar Masters-B 2024"]
[Site "Doha"]
[Date "2024.12.12"]
[Round "9.8"]
[White "Sawan, Eman"]
[Black "Abel Sajan"]
[Result "0-1"]
[ECO "B52"]
[WhiteElo "2065"]
[BlackElo "2053"]
[Annotator "NA RC"]
[PlyCount "100"]
[EventDate "2024.11.24"]
[EventType "swiss"]
[EventCountry "QAT"]
[SourceTitle "playchess.com"]
[Source "ChessBase"]
[SourceQuality "1"]
[TimeControl "40/5400+30:1800+30"]

1. e4 {[%emt 0:00:01]} c5 {[%emt 0:01:11]} 2. Nf3 {[%emt 0:00:03]} d6 {[%emt 0:00:10]} 3. Bb5+ {[%emt 0:00:04]} Bd7 {[%emt 0:00:11]} 4. Bxd7+ {[%emt 0:00:05]} Qxd7 {[%emt 0:00:04]} 5. O-O {[%emt 0:00:05]} Nf6 {[%emt 0:00:08]} 6. Re1 {[%emt 0:00:06]} Nc6 {[%emt 0:00:09]} 7. c3 {[%emt 0:00:08]} e6 {[%emt 0:00:05]} 8. d4 {[%emt 0:00:04]} cxd4 {[%emt 0:00:09]} 9. cxd4 {[%emt 0:00:03]} d5 {[%emt 0:00:11]} 10. e5 {[%emt 0:00:04]} Ne4 {[%emt 0:00:09]} 11. a3 {[%emt 0:00:07]} Be7 {[%emt 0:01:09]} 12. Qd3 {[%emt 0:00:04]} O-O {[%emt 0:12:09]} 13. Nbd2 {[%emt 0:00:03]} Nxd2 {[%emt 0:02:07]} 14. Bxd2 {[%emt 0:00:42]} Rfc8 {[%emt 0:02:38]} 15. h4 {[%emt 0:02:14]} a5 {[%emt 0:06:31]} 16. Re3 {[%emt 0:03:15]} Qd8 {[%emt 0:09:01]} 17. Nh2 {[%emt 0:13:34]} Qb6 {[%emt 0:05:45]} 18. Bc3 {[%emt 0:06:02]} Qa6 {[%emt 0:11:27]} 19. Qd1 {[%emt 0:01:48]} b5 {[%emt 0:01:36]} 20. Qg4 {[%emt 0:06:40]} Qb6 {[%emt 0:02:20]} 21. Rg3 {[%emt 0:03:34]} Bf8 {[%emt 0:02:12]} 22. Qh5 {[%emt 0:10:50]} g6 {[%emt 0:07:21]} 23. Ng4 {[%emt 0:01:40]} Bg7 {[%emt 0:01:25]} 24. Nf6+ {[%emt 0:07:12]} Bxf6 {[%emt 0:00:31]} 25. exf6 {[%emt 0:00:02]} Nxd4 {[%emt 0:02:57]} 26. Qe5 {[%emt 0:12:25]} Nf5 {[%emt 0:02:48]} 27. Rg5 {[%emt 0:03:38]} Rc4 {[%emt 0:05:49]} 28. g4 {[%emt 0:12:28]} Re4 {[%emt 0:03:11]} 29. Qh2 {[%emt 0:00:31]} Nd4 {[%emt 0:01:34]} 30. Kg2 {[%emt 0:03:10]} Qb8 {[%emt 0:02:27]} 31. Qxb8+ {[%emt 0:03:32]} Rxb8 {[%emt 0:00:12]} 32. f3 {[%emt 0:00:16]} Rf4 {[%emt 0:06:35]} 33. Rf1 {[%emt 0:02:37]} h6 {[%emt 0:02:37]} 34. Re5 {[%emt 0:01:12]} Nc6 {[%emt 0:01:08]} 35. Re2 {[%emt 0:00:35]} Rc4 {[%emt 0:01:25]} 36. Bd2 {[%emt 0:01:58]} Nd4 {[%emt 0:02:21]} 37. Ref2 {[%emt 0:00:14]} h5 {[%emt 0:03:08]} 38. gxh5 {[%emt 0:02:55]} gxh5 {[%emt 0:00:26]} 39. Kh2 {[%emt 0:03:21]} Nf5 {[%emt 0:00:39]} 40. Rg1+ {[%emt 0:00:48]} Kh7 {[%emt 0:00:24]} 41. f4 {[%emt 0:30:52]} Rc2 {[%emt 0:33:11]} 42. Rg5 {[%emt 0:01:18]} Kh6 {[%emt 0:00:48]} 43. b4 {[%emt 0:00:57]} axb4 {[%emt 0:00:31]} 44. axb4 {[%emt 0:00:05]} Ra8 {[%emt 0:00:34]} 45. Rfg2 {[%emt 0:01:03]} Raa2 {[%emt 0:00:43]} 46. Rg8 {[%emt 0:00:27]} Kh7 {[%emt 0:00:46]} 47. R8g5 {[%emt 0:00:36]} Rxd2 {[%emt 0:00:15]} 48. Rxh5+ {[%emt 0:00:06]} Nh6 {[%emt 0:00:07]} 49. f5 {[%emt 0:00:53]} Rxg2+ {[%emt 0:00:13]} 50. Kh3 {[%emt 0:00:08]} Rgb2 {[%emt 0:00:28]} 0-1